bitfinex-derivatives/quotes_BTCF0:USTF0_20241116
["timestamp","ask_amount","ask_price","bid_price","bid_amount"]
[1731768177697,0.087,91035.0,91034.0,0.39483652]
[1731768177903,0.087,91035.0,91034.0,0.65657489]
[1731768178103,0.087,91035.0,91034.0,0.39483652]
[1731768178608,0.38277004,91053.0,91034.0,0.39483652]
[1731768178609,0.087,91039.0,91034.0,0.39483652]
[1731768178812,0.054896,91048.0,91047.0,0.03389743]
[1731768179111,0.141896,91048.0,91047.0,0.03389743]
[1731768187409,0.141896,91048.0,91047.0,0.29533822]
[1731768187805,0.141896,91048.0,91047.0,0.22993657]
[1731768188006,0.141896,91048.0,91047.0,0.03389743]
[1731768188206,0.141896,91048.0,91047.0,0.22993657]
[1731768188718,0.141896,91048.0,91047.0,0.03389743]
[1731768189709,0.141896,91048.0,91047.0,0.22994194]
[1731768190014,0.141896,91048.0,91047.0,0.03389743]
[1731768190316,0.41555654,91053.0,91048.0,0.054896]
[1731768190615,0.41555654,91053.0,91045.0,0.26144079]
[1731768190616,0.41499653,91053.0,91052.0,0.03389743]
[1731768190816,0.50187653,91053.0,91052.0,0.03389743]
[1731768191817,0.3608,91053.0,91052.0,0.03389743]
[1731768192019,0.141773,91054.0,91052.0,0.03389743]
[1731768192217,0.141773,91054.0,91053.0,0.03389743]
[1731768193213,0.141773,91054.0,91053.0,0.29515019]
[1731768193823,0.141773,91054.0,91053.0,0.03389743]
[1731768195815,0.054893,91054.0,91053.0,0.03389743]
[1731768196117,8.149e-05,91055.0,91053.0,0.08879043]
[1731768196317,8.149e-05,91055.0,91054.0,0.03389743]
[1731768196913,8.149e-05,91055.0,91054.0,0.29503413]
[1731768197218,8.149e-05,91055.0,91054.0,0.03389743]
[1731768197415,8.149e-05,91055.0,91054.0,0.29499269]
[1731768197614,8.149e-05,91055.0,91054.0,0.03389743]
[1731768198711,0.08696149,91055.0,91054.0,0.03389743]
[1731768198913,0.08696149,91055.0,91050.0,0.26109526]
[1731768199116,0.3608,91053.0,91052.0,0.03389743]
[1731768199326,0.46508602,91053.0,91052.0,0.03389743]
[1731768199526,0.46508602,91053.0,91047.0,0.19591672]
[1731768199712,0.46508602,91053.0,91051.0,0.03389743]
[1731768200019,0.29082931,91052.0,91051.0,0.03389743]
[1731768200521,0.15918002,91052.0,91051.0,0.03389743]
[1731768200722,0.054902,91039.0,91038.0,0.0051]
[1731768201028,0.054903,91037.0,91036.0,0.19591672]
[1731768201524,0.054903,91037.0,91036.0,0.03389743]
[1731768201735,0.054903,91037.0,91036.0,0.22981415]
[1731768201923,0.054903,91037.0,91036.0,0.03389743]
[1731768202224,0.054903,91037.0,91036.0,0.22984932]
[1731768202427,0.054903,91037.0,91036.0,0.03389743]
[1731768202726,0.10922074,91037.0,91036.0,0.03389743]
[1731768205226,0.10922074,91037.0,91036.0,0.22984932]
[1731768205428,0.10922074,91037.0,91036.0,0.03389743]
[1731768205627,0.08688,91039.0,91037.0,0.054903]
[1731768205821,0.08688,91039.0,91037.0,0.31599826]
[1731768206026,0.08688,91039.0,91038.0,0.29499269]
[1731768206425,0.08688,91039.0,91038.0,0.03389743]
[1731768206623,0.08688,91039.0,91038.0,0.29516124]
[1731768207632,0.08688,91039.0,91038.0,0.29524572]
[1731768207829,0.08688,91039.0,91038.0,0.03389743]
[1731768208128,0.08688,91039.0,91038.0,0.2952426]
[1731768208721,0.08688,91039.0,91038.0,0.03389743]
[1731768209528,0.08688,91039.0,91038.0,0.29523876]
[1731768209830,0.08688,91039.0,91038.0,0.03389743]
[1731768210333,0.08688,91039.0,91038.0,0.29523876]
[1731768210525,0.08688,91039.0,91038.0,0.29523034]
[1731768210725,0.08688,91039.0,91038.0,0.03389743]
[1731768212331,0.08688,91039.0,91038.0,0.29523034]
[1731768212832,0.08688,91039.0,91038.0,0.03389743]
[1731768213229,0.054902,91038.0,91037.0,0.26133291]
[1731768213432,0.054902,91038.0,91036.0,0.26133291]
[1731768213637,0.054902,91038.0,91037.0,0.03389743]
[1731768213836,0.054904,91035.0,91034.0,0.00013909]
[1731768214028,0.415704,91035.0,91034.0,0.00013909]
[1731768219541,0.54715769,91035.0,91034.0,0.00013909]
[1731768219732,0.502504,91035.0,91034.0,0.00013909]
[1731768219937,0.6339165,91035.0,91034.0,0.00013909]
[1731768220337,0.502504,91035.0,91034.0,0.00013909]
[1731768226255,0.502504,91035.0,91034.0,0.03403652]
[1731768226454,0.141704,91035.0,91034.0,0.03403652]
[1731768230044,0.141704,91035.0,91034.0,0.23004122]
[1731768231760,0.054904,91035.0,91034.0,0.23004122]
[1731768232253,0.054904,91035.0,91034.0,0.03403652]
[1731768233450,0.054904,91035.0,91034.0,0.23004122]
[1731768233645,0.054904,91035.0,91034.0,0.03403652]
[1731768237753,0.15919002,91035.0,91034.0,0.03403652]
[1731768238450,0.29077118,91035.0,91034.0,0.03403652]
[1731768238640,0.29077166,91035.0,91034.0,0.03403652]
[1731768238845,0.29077204,91035.0,91034.0,0.03403652]
[1731768239242,0.29077204,91035.0,91027.0,0.1979532]
[1731768239243,0.054907,91030.0,91027.0,0.1979532]
[1731768239454,0.15919002,91035.0,91014.0,0.26133291]
[1731768239455,0.054916,91016.0,91014.0,0.26133291]
[1731768239653,0.054917,91014.0,91012.0,0.26416291]
[1731768239855,0.054917,91014.0,91012.0,0.00283]
[1731768240051,0.054917,91014.0,91013.0,0.03389743]
[1731768243359,0.054917,91014.0,91012.0,0.00283]
[1731768243567,0.054917,91014.0,90996.0,0.26133291]
[1731768243762,0.46508602,91000.0,90995.0,0.26133291]
[1731768243968,0.55180602,91000.0,90993.0,0.26133291]
[1731768244151,0.55180602,91000.0,90999.0,0.08091034]
[1731768245958,0.55180602,91000.0,90999.0,0.03389743]
[1731768246372,0.91260602,91000.0,90981.0,0.26133291]
[1731768246555,0.054936,90982.0,90981.0,0.26133291]
[1731768246753,0.054938,90979.0,90976.0,0.26298089]
[1731768246958,0.054938,90979.0,90978.0,0.03389743]
[1731768252165,0.054933,90987.0,90979.0,0.054938]
[1731768252478,0.10428602,91002.0,90976.0,0.00417798]
[1731768252479,0.08676,90989.0,90982.0,0.3608]
[1731768252765,0.08676,90992.0,90983.0,0.054935]
[1731768252971,0.08676,90992.0,90985.0,0.054934]
[1731768253171,0.41585321,91000.0,90982.0,0.3608]
[1731768253172,0.08676,90997.0,90991.0,0.03389743]
[1731768253362,0.08676,90997.0,90996.0,0.03389743]
[1731768253765,0.41585321,91000.0,90998.0,0.054926]
[1731768253766,0.3608,91000.0,90998.0,0.054926]
[1731768253965,0.08676,91013.0,91002.0,0.054924]
[1731768254161,0.054918,91012.0,91002.0,0.3608]
[1731768254363,0.054918,91012.0,91003.0,0.054923]
[1731768254568,0.054918,91012.0,91011.0,0.03389743]
[1731768257570,0.15920402,91012.0,91011.0,0.03389743]
[1731768258179,0.054918,91012.0,91011.0,0.03389743]
[1731768267371,0.15920402,91012.0,91011.0,0.03389743]
[1731768267577,0.054925,91001.0,90994.0,0.32136191]
[1731768267779,0.054925,91001.0,91000.0,0.03389743]
[1731768270583,0.502445,91001.0,91000.0,0.03389743]
[1731768271580,0.141645,91001.0,91000.0,0.03389743]
[1731768271778,0.054933,90988.0,90987.0,0.26133291]
[1731768271983,0.054933,90988.0,90986.0,0.26133291]
[1731768272191,0.054933,90988.0,90987.0,0.29523034]
[1731768272491,0.054933,90988.0,90987.0,0.03389743]
[1731768273392,0.054933,90988.0,90987.0,0.29523034]
[1731768273588,0.15921902,90988.0,90987.0,0.03389743]
[1731768273792,0.054939,90978.0,90976.0,0.00164798]
[1731768273998,0.19092602,90977.0,90976.0,0.00164798]
[1731768274380,0.19092602,90977.0,90976.0,0.03554541]
[1731768277590,0.19092602,90977.0,90976.0,0.00164798]
[1731768278299,0.19092602,90977.0,90964.0,0.0051]
[1731768278300,0.24478396,90977.0,90964.0,0.0051]
[1731768278595,0.24478396,90977.0,90973.0,0.03389743]
[1731768279182,0.08668,90976.0,90973.0,0.03389743]
[1731768279488,0.054941,90974.0,90973.0,0.03389743]
[1731768286785,0.054941,90974.0,90959.0,0.3608]
[1731768286986,0.054941,90974.0,90973.0,0.03389743]
[1731768287299,0.141621,90974.0,90973.0,0.03389743]
[1731768288586,0.08668,90975.0,90973.0,0.03389743]
[1731768288787,0.08668,90975.0,90971.0,0.054942]
[1731768288983,0.08668,90975.0,90974.0,0.03389743]
[1731768290305,0.00521426,90990.0,90974.0,0.03389743]
[1731768290306,0.054937,90981.0,90974.0,0.08883843]
[1731768290597,0.054937,90981.0,90975.0,0.05494]
[1731768290807,0.054937,90981.0,90980.0,0.03389743]
[1731768292499,0.08668,90985.0,90980.0,0.03389743]
[1731768292687,0.00011426,90990.0,90984.0,0.03389743]
[1731768292688,0.054934,90987.0,90984.0,0.03389743]
[1731768292995,0.141614,90987.0,90983.0,0.054935]
[1731768293198,0.054934,90987.0,90986.0,0.03389743]
[1731768293398,0.00011426,90990.0,90986.0,0.03389743]
[1731768293598,0.00011426,90990.0,90989.0,0.03389743]
[1731768298307,0.00011426,90990.0,90984.0,0.2616676]
[1731768298308,0.054932,90989.0,90984.0,0.2616676]
[1731768299091,0.054932,90989.0,90985.0,0.2616676]
[1731768300101,0.054932,90989.0,90987.0,0.2616676]
[1731768300501,0.054932,90989.0,90987.0,0.3166006]
[1731768300696,0.054932,90989.0,90988.0,0.2616676]
[1731768301402,0.10440028,90990.0,90976.0,0.3261106]
[1731768301612,0.10440028,90990.0,90961.0,0.3608]
[1731768301613,0.054936,90983.0,90981.0,0.26182827]
[1731768301795,0.4474,90982.0,90981.0,0.26182827]
[1731768302000,0.054937,90981.0,90980.0,0.26182827]
[1731768302205,0.054937,90981.0,90974.0,0.054941]
[1731768302206,0.054939,90978.0,90976.0,0.3261106]
[1731768302598,0.054937,90980.0,90976.0,0.26188896]
[1731768302796,0.0866,90981.0,90977.0,0.26187477]
[1731768303004,0.054939,90978.0,90976.0,0.26187477]
[1731768303210,0.054939,90978.0,90976.0,0.05494]
[1731768303396,0.054939,90978.0,90977.0,0.03389743]
[1731768303601,0.14081971,90981.0,90977.0,0.03389743]
[1731768303602,0.05421971,90981.0,90977.0,0.08883643]
[1731768303795,0.0866,90981.0,90980.0,0.03389743]
[1731768304800,0.08671426,90990.0,90988.0,0.054932]
[1731768304999,0.08671426,90990.0,90989.0,0.03389743]
[1731768305000,0.00011426,90990.0,90989.0,0.03389743]
[1731768306408,0.10278912,91009.0,91008.0,0.05492]
[1731768306602,0.00060001,91009.0,91008.0,0.41572]
[1731768306815,0.054915,91018.0,91014.0,0.054917]
[1731768307110,0.00164869,91019.0,91013.0,0.26158812]
[1731768307297,0.00164869,91019.0,91016.0,0.054915]
[1731768308005,0.00164869,91019.0,91013.0,0.26158812]
[1731768308200,0.054917,91014.0,91013.0,0.26158812]
[1731768308402,0.20857204,91017.0,91003.0,0.26158812]
[1731768308609,0.054924,91002.0,91000.0,0.26158812]
[1731768308815,0.054924,91002.0,90996.0,0.31651512]
[1731768309002,0.054924,91002.0,90996.0,0.054927]
[1731768309516,0.054924,91002.0,90992.0,0.62238812]
[1731768309517,0.054924,91002.0,90997.0,0.054927]
[1731768309823,0.054924,91002.0,90992.0,0.62354812]
[1731768309824,0.054924,91002.0,90998.0,0.054926]
[1731768311410,0.05366067,91006.0,90992.0,0.36188]
[1731768311411,0.054927,90997.0,90992.0,0.36188]
[1731768311713,0.05366067,91006.0,90992.0,0.3608]
[1731768312015,0.054929,90994.0,90992.0,0.3608]
[1731768313009,0.3608,91002.0,90988.0,0.054932]
[1731768313010,0.10428602,90999.0,90988.0,0.054932]
[1731768313198,0.054929,90994.0,90987.0,0.054933]
[1731768313404,0.3608,91002.0,90982.0,0.3608]
[1731768313405,0.08656,90997.0,90984.0,0.26158812]
[1731768313702,0.08656,90997.0,90995.0,0.054928]
[1731768313902,0.08656,90997.0,90996.0,0.10428602]
[1731768316009,0.054924,91003.0,90996.0,0.10428602]
[1731768316309,0.054926,91000.0,90995.0,0.31651612]
[1731768316517,0.08656,91005.0,90995.0,0.26158812]
[1731768316820,0.08656,91005.0,90994.0,0.26158812]
[1731768316821,0.10428602,91000.0,90994.0,0.26158812]
[1731768317015,0.16427134,91014.0,90999.0,0.3608]
[1731768317315,0.054915,91018.0,91009.0,0.054919]
[1731768317811,0.141475,91018.0,91009.0,0.054919]
[1731768318210,0.08656,91018.0,91008.0,0.3608]
[1731768318404,0.08656,91018.0,91015.0,0.054916]
[1731768320008,0.08656,91018.0,91017.0,0.054915]
[1731768320209,0.00164869,91019.0,91017.0,0.054915]
[1731768320816,0.00164869,91019.0,91018.0,0.10428602]
[1731768322116,0.00164869,91019.0,91017.0,0.054915]
[1731768326718,0.00164869,91019.0,91016.0,0.3608]
[1731768327022,0.00164869,91019.0,91007.0,0.26158812]
[1731768327320,0.054921,91008.0,91003.0,0.054923]
[1731768328521,0.054917,91013.0,91006.0,0.054922]
[1731768329422,0.054918,91012.0,91006.0,0.054922]
[1731768329617,0.00164869,91019.0,91006.0,0.054922]
[1731768329811,0.054915,91018.0,91011.0,0.3608]
[1731768330013,0.3608,91014.0,91001.0,0.26158812]
[1731768330213,0.08656,91013.0,90998.0,0.36188]
[1731768330509,0.08656,91013.0,90989.0,0.41857979]
[1731768330510,0.3608,91006.0,90989.0,0.36254347]
[1731768330822,0.054931,90990.0,90989.0,0.36254347]
[1731768332117,0.054931,90990.0,90989.0,0.47244626]
[1731768332926,0.3608,91006.0,90989.0,0.47244626]
[1731768333123,0.3608,91013.0,90994.0,0.10428602]
[1731768333317,0.08648,91012.0,90998.0,0.054926]
[1731768333516,0.08648,91012.0,90994.0,0.10428602]
[1731768333517,0.054922,91005.0,90999.0,0.054925]
[1731768333818,0.4170945,91013.0,91002.0,0.10428602]
[1731768333819,0.41765451,91013.0,91002.0,0.10428602]
[1731768334017,0.054919,91012.0,91008.0,0.05492]
[1731768334329,0.00060001,91013.0,91011.0,0.054918]
[1731768334519,0.08648,91018.0,91011.0,0.054918]
[1731768334721,0.08648,91018.0,91012.0,0.10988769]
[1731768335027,0.08648,91018.0,91013.0,0.054917]
[1731768335219,0.054916,91016.0,91013.0,0.054917]
[1731768335925,0.054916,91016.0,91014.0,0.1098726]
[1731768336633,0.19076602,91018.0,91002.0,0.26158812]
[1731768336862,0.19076602,91018.0,91000.0,0.31651312]
[1731768336863,0.054923,91004.0,91000.0,0.31651312]
[1731768337125,0.054925,91002.0,91001.0,0.10987199]
[1731768338020,0.054925,91002.0,91001.0,0.37146011]
[1731768338723,0.054925,91002.0,91001.0,0.10987199]
[1731768338923,0.054925,91002.0,91001.0,0.37154785]
[1731768339522,0.056115,91011.0,91002.0,0.054924]
[1731768339716,0.054921,91008.0,91002.0,0.054924]
[1731768340232,0.054921,91008.0,91003.0,0.10988226]
[1731768340525,0.00144943,91006.0,91003.0,0.21416828]
[1731768340729,0.00144943,91006.0,91005.0,0.3608]
[1731768341224,0.00196068,91006.0,91005.0,0.52560667]
[1731768341928,0.00196068,91006.0,91005.0,0.85268161]
[1731768342231,0.00196068,91006.0,91005.0,0.52560667]
[1731768342421,0.00196068,91006.0,91005.0,0.85277235]
[1731768342621,0.00196068,91006.0,91005.0,0.85524667]
[1731768342825,0.00164869,91019.0,91016.0,0.15920102]
[1731768343020,0.00164869,91019.0,91013.0,0.26169309]
[1731768343222,0.054917,91013.0,91012.0,0.26169309]
[1731768343441,0.054917,91013.0,91011.0,0.054919]
[1731768343730,0.054917,91013.0,91012.0,0.37164059]
[1731768343924,0.054917,91013.0,91011.0,0.054919]
[1731768343925,0.054917,91013.0,91011.0,0.31667613]
[1731768344127,0.054917,91013.0,91012.0,0.26175713]
[1731768344427,0.054917,91013.0,91012.0,0.37163275]
[1731768344826,0.054917,91013.0,91012.0,0.37168815]
[1731768345132,0.00164869,91019.0,91012.0,0.37168815]
[1731768345438,0.00164869,91019.0,91018.0,0.054914]
[1731768346121,0.00164869,91019.0,91018.0,0.16478177]
[1731768347730,0.00164869,91019.0,91018.0,0.10986777]
[1731768348132,0.00164869,91019.0,91015.0,0.3608]
[1731768348133,0.05656269,91019.0,91015.0,0.3608]
[1731768348326,0.05656269,91019.0,91016.0,0.10986777]
[1731768349647,0.00164869,91019.0,91016.0,0.10986777]
[1731768349826,0.054915,91018.0,91016.0,0.07986777]
[1731768356426,0.054915,91018.0,91016.0,0.3416803]
[1731768358625,0.054915,91018.0,91016.0,0.07986777]
[1731768358835,0.054915,91018.0,91016.0,0.3416803]
[1731768359232,0.00164869,91019.0,91016.0,0.3965963]
[1731768359439,0.00164869,91019.0,91017.0,0.26181253]
[1731768359838,0.00164869,91019.0,91016.0,0.31672853]
[1731768360046,0.00164869,91019.0,91018.0,0.10986837]
[1731768360231,0.00164869,91019.0,91018.0,0.16478237]
[1731768360438,0.00164869,91019.0,91018.0,0.054914]
[1731768360639,0.00164869,91019.0,91018.0,0.10986837]
[1731768361033,0.054917,91015.0,91013.0,0.3608]
[1731768361249,0.054917,91015.0,91014.0,0.10986777]
[1731768361436,0.054917,91015.0,91013.0,0.7431645]
[1731768361437,0.054917,91015.0,91013.0,0.36188]
[1731768361638,0.054917,91015.0,91012.0,0.32711636]
[1731768361840,0.054917,91015.0,91014.0,0.10986777]
[1731768362140,0.054917,91015.0,91004.0,0.02197258]
[1731768362141,0.054917,91015.0,91009.0,0.32711636]
[1731768362336,0.054917,91015.0,91012.0,0.1098738]
[1731768362532,0.00164869,91019.0,91011.0,0.32711636]
[1731768362740,0.054917,91013.0,91008.0,0.32711636]
[1731768362946,0.054917,91013.0,91012.0,0.1098738]
[1731768363145,0.054917,91013.0,91007.0,0.74395736]
[1731768363343,0.054917,91013.0,91009.0,0.32711636]
[1731768363645,0.054917,91013.0,91008.0,0.32711636]
[1731768363944,0.054917,91013.0,91010.0,0.10987199]
[1731768364242,0.054917,91013.0,91008.0,0.32711636]
[1731768364243,0.054918,91012.0,91008.0,0.32711636]
[1731768364443,0.054918,91012.0,91007.0,0.415721]
[1731768364444,0.054918,91012.0,91009.0,0.43699379]
[1731768364662,0.054918,91012.0,91009.0,0.10987743]
[1731768364943,0.054918,91012.0,91008.0,0.32711636]
[1731768365248,0.054918,91012.0,91009.0,0.10987743]
[1731768365838,0.054918,91012.0,91009.0,0.43699379]
[1731768366146,0.054918,91012.0,91008.0,0.32711636]
[1731768366646,0.054918,91012.0,91010.0,0.10987743]
[1731768366849,0.054918,91012.0,91008.0,0.32711636]
[1731768367039,0.054918,91012.0,91009.0,0.10987682]
[1731768367352,0.054918,91012.0,91009.0,0.43699318]
[1731768367741,0.054918,91012.0,91009.0,0.32711636]
[1731768367939,0.054918,91012.0,91010.0,0.10987682]
[1731768368343,0.054918,91012.0,91010.0,0.43699318]
[1731768368553,0.054918,91012.0,91010.0,0.10987682]
[1731768368853,0.0864,91017.0,91010.0,0.32711636]
[1731768369053,0.054914,91019.0,91016.0,0.2623492]
[1731768369244,0.054914,91019.0,91016.0,0.054915]
[1731768369757,0.054914,91019.0,91017.0,0.10987682]
[1731768373144,0.054914,91019.0,91018.0,0.32711636]
[1731768373339,0.054914,91019.0,91017.0,0.10987682]
[1731768373649,0.054914,91019.0,91018.0,0.3280893]
[1731768373849,0.054914,91019.0,91018.0,0.10986837]
[1731768374152,0.21805409,91030.0,91026.0,0.054909]
[1731768374374,0.21805409,91030.0,91028.0,0.36673286]
[1731768374651,0.21805409,91030.0,91028.0,0.42164086]
[1731768374855,0.13165409,91031.0,91029.0,0.37231461]
[1731768375042,0.13165409,91031.0,91030.0,0.054907]
[1731768375244,0.05716386,91032.0,91030.0,0.054907]
[1731768375451,0.00164813,91032.0,91030.0,0.054907]
[1731768375650,0.00164813,91032.0,91031.0,0.1098551]
[1731768381762,0.054903,91037.0,91032.0,0.054906]
[1731768381949,0.14122205,91040.0,91033.0,0.26180891]
[1731768382356,0.14122205,91040.0,91037.0,0.054902]
[1731768382765,0.14122205,91040.0,91034.0,0.26180891]
[1731768382766,0.054903,91038.0,91034.0,0.26180891]
[1731768382958,0.054903,91038.0,91033.0,0.26180891]
[1731768383161,0.054903,91038.0,91035.0,0.10984363]
[1731768383461,0.054903,91038.0,91033.0,0.054905]
[1731768383759,0.054903,91038.0,91036.0,0.10984363]
[1731768383951,0.054903,91038.0,91033.0,0.054905]
[1731768384153,0.054903,91038.0,91037.0,0.10984725]
[1731768384555,0.054903,91038.0,91033.0,0.054905]
[1731768384759,0.054903,91038.0,91034.0,0.10984725]
[1731768385158,0.054903,91038.0,91033.0,0.054905]
[1731768385463,0.054903,91038.0,91035.0,0.10984725]
[1731768385657,0.054903,91038.0,91033.0,0.054905]
[1731768385964,0.054903,91038.0,91034.0,0.10984725]
[1731768386263,0.054903,91038.0,91033.0,0.054905]
[1731768386459,0.054903,91038.0,91034.0,0.10984725]
[1731768386965,0.05576119,91041.0,91034.0,0.10984725]
[1731768387151,9.934e-05,91045.0,91040.0,0.10428602]
[1731768387351,9.934e-05,91045.0,91044.0,0.054899]
[1731768388161,9.934e-05,91045.0,91044.0,0.16473539]
[1731768388363,0.05429776,91045.0,91044.0,0.16473539]
[1731768392057,0.05429776,91045.0,91044.0,0.10983639]
[1731768392369,0.05429776,91045.0,91042.0,0.3608]
[1731768392370,0.05429776,91045.0,91036.0,0.26180891]
[1731768392569,0.10919576,91045.0,91038.0,0.054902]
[1731768392765,0.10919576,91045.0,91044.0,0.47063639]
[1731768392962,0.10919576,91045.0,91044.0,0.3608]
[1731768393270,0.054901,91040.0,91038.0,0.054902]
[1731768393862,0.054901,91040.0,91039.0,0.10983639]
[1731768394764,0.05429776,91045.0,91039.0,0.10983639]
[1731768395073,0.05429776,91045.0,91044.0,0.3608]
[1731768395667,9.934e-05,91045.0,91043.0,0.054899]
[1731768395870,9.934e-05,91045.0,91044.0,0.10983941]
[1731768396067,0.05499734,91045.0,91044.0,0.10983941]
[1731768396372,0.054901,91041.0,91037.0,0.31671191]
[1731768396569,0.054901,91041.0,91038.0,0.37164591]
[1731768396770,9.934e-05,91045.0,91038.0,0.26180891]
[1731768397068,9.934e-05,91045.0,91034.0,0.3608]
[1731768397069,0.054904,91036.0,91034.0,0.3608]
[1731768397371,0.054904,91036.0,91034.0,0.62260891]
[1731768397669,0.054904,91036.0,91035.0,0.10984001]
[1731768398565,0.05690204,91036.0,91035.0,0.10984001]
[1731768399266,0.00199804,91036.0,91035.0,0.21412603]
[1731768399568,0.00199804,91036.0,91035.0,0.62983003]
[1731768399968,9.934e-05,91045.0,91035.0,0.83673494]
[1731768400168,0.00250533,91036.0,91035.0,0.78735292]
[1731768400367,0.00250533,91036.0,91035.0,0.52554401]
[1731768400566,0.00250533,91036.0,91035.0,0.78702774]
[1731768400865,0.00250533,91036.0,91035.0,0.85360256]
[1731768401370,0.00250533,91036.0,91035.0,0.52554401]
[1731768402079,0.00250533,91036.0,91035.0,0.85242634]
[1731768402262,0.00250533,91036.0,91035.0,0.52554401]
[1731768402462,0.00250533,91036.0,91035.0,0.62983003]
[1731768402972,0.00250533,91036.0,91035.0,0.68411808]
[1731768405877,0.00250533,91036.0,91035.0,1.07660801]
[1731768406475,0.00250533,91036.0,91035.0,0.68411808]
[1731768406670,0.00250533,91036.0,91035.0,1.07676335]
[1731768407269,0.00250533,91036.0,91035.0,0.68411808]
[1731768407477,0.00350337,91036.0,91035.0,0.68411808]
[1731768408779,0.00350337,91036.0,91035.0,1.02402194]
[1731768408980,0.00350337,91036.0,91035.0,0.68411808]
[1731768410180,0.00350337,91036.0,91035.0,0.69441449]
[1731768410670,0.00401289,91036.0,91035.0,0.69441449]
[1731768410876,0.00401289,91036.0,91035.0,0.65852345]
[1731768411478,0.00401289,91036.0,91035.0,1.00073808]
[1731768412385,0.00401289,91036.0,91035.0,1.06913306]
[1731768412572,0.00401289,91036.0,91035.0,1.06921368]
[1731768413081,0.00401289,91036.0,91035.0,0.99052229]
[1731768413880,0.00401289,91036.0,91035.0,1.05891727]
[1731768414078,0.00401289,91036.0,91035.0,1.0577553]
[1731768414586,0.00401289,91036.0,91035.0,1.05850983]
[1731768414774,0.00401289,91036.0,91035.0,0.99011485]
[1731768415276,0.00401289,91036.0,91035.0,1.05850983]
[1731768415489,0.00401289,91036.0,91035.0,0.99011485]
[1731768415871,0.00401289,91036.0,91035.0,0.92171987]
[1731768416072,0.00401289,91036.0,91035.0,0.99011485]
[1731768417073,0.00401289,91036.0,91035.0,1.00041096]
[1731768418682,0.00401289,91036.0,91035.0,1.00095327]
[1731768421587,0.00401289,91036.0,91035.0,1.00196988]
[1731768422587,0.00401289,91036.0,91035.0,1.07036486]
[1731768423794,9.934e-05,91045.0,91035.0,1.07036486]
[1731768424083,9.934e-05,91045.0,91044.0,0.55248896]
[1731768424292,9.934e-05,91045.0,91044.0,0.56278507]
[1731768424678,9.934e-05,91045.0,91044.0,1.06509366]
[1731768424877,9.934e-05,91045.0,91044.0,0.67262689]
[1731768425991,9.934e-05,91045.0,91044.0,1.0650455]
[1731768426183,9.934e-05,91045.0,91044.0,0.67262689]
[1731768426582,9.934e-05,91045.0,91044.0,1.06504484]
[1731768427082,9.934e-05,91045.0,91044.0,0.67262689]
[1731768427483,9.934e-05,91045.0,91044.0,0.66233078]
[1731768428287,9.934e-05,91045.0,91044.0,0.95306778]
[1731768428686,9.934e-05,91045.0,91044.0,0.81627782]
[1731768428897,9.934e-05,91045.0,91044.0,0.8846728]
[1731768429796,9.934e-05,91045.0,91044.0,0.95306778]
[1731768430679,9.934e-05,91045.0,91044.0,0.95359251]
[1731768431787,9.934e-05,91045.0,91044.0,1.35629216]
[1731768432392,9.934e-05,91045.0,91044.0,1.35645113]
[1731768432895,9.934e-05,91045.0,91044.0,0.96388809]
[1731768433195,9.934e-05,91045.0,91044.0,1.3564498]
[1731768433383,9.934e-05,91045.0,91044.0,0.96388809]
[1731768433588,9.934e-05,91045.0,91044.0,1.34615422]
[1731768433895,9.934e-05,91045.0,91044.0,0.95359251]
[1731768434088,9.934e-05,91045.0,91044.0,0.82709832]
[1731768434296,9.934e-05,91045.0,91044.0,1.28808783]
[1731768434792,9.934e-05,91045.0,91044.0,0.8954933]
[1731768435193,9.934e-05,91045.0,91044.0,0.60423157]
[1731768435595,9.934e-05,91045.0,91044.0,0.54933257]
[1731768436198,0.06583984,91058.0,91044.0,0.85549672]
[1731768436398,0.054892,91056.0,91054.0,0.26176986]
[1731768436596,0.054892,91056.0,91055.0,0.02608338]
[1731768437097,0.054892,91056.0,91055.0,0.12356425]
[1731768437397,0.054892,91056.0,91055.0,0.38533411]
[1731768437595,0.054892,91056.0,91055.0,0.12356425]
[1731768438095,0.054892,91056.0,91055.0,0.12013216]
[1731768438295,0.054892,91056.0,91055.0,0.38190202]
[1731768439099,0.054892,91056.0,91055.0,0.37160625]
[1731768439302,0.054892,91056.0,91055.0,0.10983639]
[1731768439688,0.054893,91054.0,91053.0,0.26176986]
[1731768440185,0.054893,91054.0,91053.0,0.38188963]
[1731768440393,0.054893,91054.0,91053.0,0.37159298]
[1731768440791,0.054893,91054.0,91053.0,0.10982312]
[1731768441098,0.37110322,91059.0,91049.0,0.06839498]
[1731768441285,0.054894,91053.0,91050.0,0.01029655]
[1731768441486,0.37110322,91059.0,91052.0,0.12328898]
[1731768441701,0.00974321,91059.0,91053.0,0.01029655]
[1731768441893,0.05489,91058.0,91056.0,0.26189376]
[1731768442200,0.0862,91061.0,91053.0,0.10982554]
[1731768442499,0.141089,91061.0,91060.0,0.19643432]
[1731768442695,0.470529,91061.0,91059.0,0.19643432]
[1731768442907,0.141089,91061.0,91060.0,0.19643432]
[1731768443092,0.05489,91059.0,91057.0,0.3303074]
[1731768443284,0.05489,91059.0,91058.0,0.26191242]
[1731768443492,0.05489,91059.0,91057.0,0.3303074]
[1731768443694,0.05489,91059.0,91058.0,0.10981709]
[1731768443894,0.14109,91059.0,91058.0,0.10981709]
[1731768444797,0.14109,91059.0,91058.0,0.37172951]
[1731768445296,0.14109,91059.0,91058.0,0.10981709]
[1731768445695,0.14109,91059.0,91058.0,0.37172951]
[1731768446693,0.14109,91059.0,91058.0,0.10981709]
[1731768447198,0.14109,91059.0,91058.0,0.37172951]
[1731768448093,0.14109,91059.0,91058.0,0.10981709]
[1731768448094,0.0862,91059.0,91058.0,0.10981709]
[1731768450100,0.05383461,91061.0,91058.0,0.10981709]
[1731768450294,0.0862,91062.0,91058.0,0.10981709]
[1731768450497,0.0862,91062.0,91061.0,0.26198057]
[1731768451006,0.0862,91062.0,91057.0,0.12328598]
[1731768451206,0.0862,91062.0,91061.0,0.10981951]
[1731768451407,0.0862,91062.0,91057.0,0.12328598]
[1731768451597,0.0862,91062.0,91061.0,0.10981589]
[1731768452007,0.0862,91062.0,91057.0,0.12328598]
[1731768452207,0.0862,91062.0,91061.0,0.10981589]
[1731768452504,0.0862,91062.0,91057.0,0.12328598]
[1731768452710,0.0862,91062.0,91061.0,0.10981589]
[1731768453015,0.0862,91062.0,91057.0,0.12328598]
[1731768453208,0.0862,91062.0,91061.0,0.10981589]
[1731768453709,0.0862,91062.0,91057.0,0.12328598]
[1731768453904,0.0862,91062.0,91061.0,0.10981589]